[Event "*** Titled Tuesday Blitz"]
[Site "Chess.com"]
[Date "2021.02.02"]
[Round "5"]
[White "Jospem"]
[Black "Arseniy_Nesterov"]
[Result "0-1"]
[WhiteElo "3031"]
[BlackElo "2822"]
[TimeControl "180+1"]
[EndTime "10:59:38 PST"]
[Termination "Arseniy_Nesterov won by resignation"]

1. e4 {[%clk 0:03:00.9]} 1... e5 {[%clk 0:02:59.8]} 2. Bc4 {[%clk 0:03:01.1]}
2... Nc6 {[%clk 0:02:58.7]} 3. Nc3 {[%clk 0:03:00.3]} 3... Nf6 {[%clk
0:02:58.4]} 4. d3 {[%clk 0:03:00.3]} 4... Na5 {[%clk 0:02:58.6]} 5. Nge2 {[%clk
0:02:59.4]} 5... Nxc4 {[%clk 0:02:57.9]} 6. dxc4 {[%clk 0:03:00.3]} 6... d6
{[%clk 0:02:57.2]} 7. Ng3 {[%clk 0:03:00.1]} 7... Be7 {[%clk 0:02:56.8]} 8. O-O
{[%clk 0:02:56.9]} 8... O-O {[%clk 0:02:56.6]} 9. Qf3 {[%clk 0:02:46.3]} 9... b6
{[%clk 0:02:50]} 10. b3 {[%clk 0:02:44.6]} 10... a5 {[%clk 0:02:49.8]} 11. Nf5
{[%clk 0:02:38.4]} 11... h6 {[%clk 0:02:19.6]} 12. h3 {[%clk 0:02:27.1]} 12...
Kh7 {[%clk 0:02:07.2]} 13. a4 {[%clk 0:02:14.2]} 13... Ng8 {[%clk 0:02:00.6]}
14. Nd5 {[%clk 0:02:08.9]} 14... Bf6 {[%clk 0:01:39.4]} 15. Be3 {[%clk
0:02:01.5]} 15... Be6 {[%clk 0:01:35.5]} 16. Rad1 {[%clk 0:01:55.6]} 16... Bxd5
{[%clk 0:01:35.5]} 17. Rxd5 {[%clk 0:01:53.8]} 17... g6 {[%clk 0:01:34.4]} 18.
Ng3 {[%clk 0:01:52.3]} 18... Qe8 {[%clk 0:01:25.2]} 19. Rdd1 {[%clk 0:01:23]}
19... Bg7 {[%clk 0:01:25]} 20. h4 {[%clk 0:01:22.2]} 20... f5 {[%clk 0:01:02.6]}
21. exf5 {[%clk 0:00:32.4]} 21... gxf5 {[%clk 0:01:03.5]} 22. Nh5 {[%clk
0:00:31.4]} 22... Bh8 {[%clk 0:00:52.5]} 23. Kh1 {[%clk 0:00:22.7]} 23... Qg6
{[%clk 0:00:51.6]} 24. Bc1 {[%clk 0:00:17]} 24... f4 {[%clk 0:00:41.9]} 25. Rg1
{[%clk 0:00:12.8]} 25... e4 {[%clk 0:00:35.4]} 26. Qe2 {[%clk 0:00:13]} 26... f3
{[%clk 0:00:30.5]} 27. gxf3 {[%clk 0:00:13.9]} 27... Qxh5 {[%clk 0:00:30.9]} 28.
Qxe4+ {[%clk 0:00:14.4]} 28... Qf5 {[%clk 0:00:31.5]} 29. Be3 {[%clk 0:00:09.3]}
29... Rae8 {[%clk 0:00:28.5]} 30. Qd3 {[%clk 0:00:08.3]} 30... Qxd3 {[%clk
0:00:28.1]} 31. Rxd3 {[%clk 0:00:09.2]} 31... Rxf3 {[%clk 0:00:28.2]} 32. h5
{[%clk 0:00:08.2]} 32... Rf5 {[%clk 0:00:26.1]} 33. Rd5 {[%clk 0:00:07.3]} 33...
Rxd5 {[%clk 0:00:24.2]} 34. cxd5 {[%clk 0:00:08.2]} 34... Nf6 {[%clk 0:00:22.1]}
35. c4 {[%clk 0:00:08.7]} 35... Nxh5 {[%clk 0:00:21.6]} 36. Rg4 {[%clk
0:00:09.4]} 36... Nf6 {[%clk 0:00:21.3]} 37. Rf4 {[%clk 0:00:10.1]} 37... Re4
{[%clk 0:00:19.1]} 38. Rf5 {[%clk 0:00:09.6]} 38... Kg6 {[%clk 0:00:18.5]} 39.
Rf3 {[%clk 0:00:10.3]} 39... h5 {[%clk 0:00:18.3]} 40. Rg3+ {[%clk 0:00:10.8]}
40... Rg4 {[%clk 0:00:18.6]} 41. Rf3 {[%clk 0:00:11]} 41... Bg7 {[%clk
0:00:18.6]} 42. Kh2 {[%clk 0:00:09.2]} 42... Ne4 {[%clk 0:00:17.3]} 43. Kh1
{[%clk 0:00:07.9]} 43... Bf6 {[%clk 0:00:16.1]} 44. Bc1 {[%clk 0:00:06.5]} 44...
Bg5 {[%clk 0:00:15.5]} 45. Bxg5 {[%clk 0:00:04.1]} 45... Kxg5 {[%clk 0:00:15.6]}
46. Rf8 {[%clk 0:00:05]} 46... Rf4 {[%clk 0:00:14.9]} 47. Rg8+ {[%clk
0:00:05.6]} 47... Kh4 {[%clk 0:00:14.3]} 48. Re8 {[%clk 0:00:05]} 48... Nxf2+
{[%clk 0:00:13.7]} 49. Kg2 {[%clk 0:00:05.7]} 49... Ng4 {[%clk 0:00:14.2]} 50.
Re7 {[%clk 0:00:06.4]} 50... Rf2+ {[%clk 0:00:13.8]} 51. Kg1 {[%clk 0:00:07.1]}
51... Kg3 {[%clk 0:00:13.4]} 52. Rg7 {[%clk 0:00:07.2]} 52... Rb2 {[%clk
0:00:10.9]} 53. Kf1 {[%clk 0:00:07.7]} 53... h4 {[%clk 0:00:10.8]} 54. c5 {[%clk
0:00:08.5]} 54... bxc5 {[%clk 0:00:10.5]} 0-1

[Event "*** Titled Tuesday Blitz"]
[Site "Chess.com"]
[Date "2021.02.02"]
[Round "5"]
[White "Kostukov_Alex"]
[Black "Brave_spirit12"]
[Result "0-1"]
[WhiteElo "2310"]
[BlackElo "2506"]
[TimeControl "180+1"]
[EndTime "10:59:39 PST"]
[Termination "Brave_spirit12 won on time"]

1. g3 {[%clk 0:02:54.4]} 1... Nf6 {[%clk 0:02:58.6]} 2. Bg2 {[%clk 0:02:54.4]}
2... g6 {[%clk 0:02:59.3]} 3. c4 {[%clk 0:02:54]} 3... Bg7 {[%clk 0:03:00]} 4.
Nf3 {[%clk 0:02:54.8]} 4... O-O {[%clk 0:03:00.6]} 5. O-O {[%clk 0:02:55.7]}
5... c6 {[%clk 0:02:59.9]} 6. d4 {[%clk 0:02:55.9]} 6... d5 {[%clk 0:03:00.6]}
7. cxd5 {[%clk 0:02:56.4]} 7... cxd5 {[%clk 0:03:01.5]} 8. Nc3 {[%clk
0:02:55.7]} 8... e6 {[%clk 0:02:57.3]} 9. Bf4 {[%clk 0:02:52.6]} 9... Nc6 {[%clk
0:02:57]} 10. Ne5 {[%clk 0:02:52.4]} 10... Nd7 {[%clk 0:02:56.9]} 11. Nxc6
{[%clk 0:02:43.6]} 11... bxc6 {[%clk 0:02:55.9]} 12. e3 {[%clk 0:02:44.2]} 12...
Nb6 {[%clk 0:02:46.9]} 13. g4 {[%clk 0:02:38.3]} 13... Ba6 {[%clk 0:02:39.2]}
14. Re1 {[%clk 0:02:36.8]} 14... Re8 {[%clk 0:02:38.9]} 15. Rc1 {[%clk
0:02:34.1]} 15... e5 {[%clk 0:02:34.2]} 16. dxe5 {[%clk 0:02:33.8]} 16... Bxe5
{[%clk 0:02:35.1]} 17. Bxe5 {[%clk 0:02:24.7]} 17... Rxe5 {[%clk 0:02:36]} 18.
Qd4 {[%clk 0:02:24.7]} 18... Qe8 {[%clk 0:02:21.1]} 19. b3 {[%clk 0:02:21.4]}
19... Rc8 {[%clk 0:02:16.9]} 20. Qc5 {[%clk 0:02:13.8]} 20... Qd7 {[%clk
0:02:00.2]} 21. Qa5 {[%clk 0:01:46]} 21... Bd3 {[%clk 0:01:33.8]} 22. h3 {[%clk
0:01:43.9]} 22... h5 {[%clk 0:01:28.7]} 23. f4 {[%clk 0:01:39.3]} 23... Re7
{[%clk 0:01:19]} 24. Bf3 {[%clk 0:01:38.8]} 24... hxg4 {[%clk 0:01:17.4]} 25.
hxg4 {[%clk 0:01:38.5]} 25... d4 {[%clk 0:01:17.4]} 26. Nd1 {[%clk 0:01:12.5]}
26... dxe3 {[%clk 0:01:12]} 27. Nxe3 {[%clk 0:01:03]} 27... Qd4 {[%clk 0:00:35]}
28. Qc5 {[%clk 0:00:58.3]} 28... Qf6 {[%clk 0:00:24.6]} 29. g5 {[%clk 0:00:34]}
29... Qxf4 {[%clk 0:00:19.5]} 30. Qxe7 {[%clk 0:00:33.6]} 30... Qxf3 {[%clk
0:00:19.9]} 31. Ng2 {[%clk 0:00:20.9]} 31... Nd5 {[%clk 0:00:18.8]} 32. Qe5
{[%clk 0:00:20.2]} 32... Qg4 {[%clk 0:00:12]} 33. Kh2 {[%clk 0:00:12.9]} 33...
Bf5 {[%clk 0:00:09]} 34. Qg3 {[%clk 0:00:12.4]} 34... Qh5+ {[%clk 0:00:07.7]}
35. Kg1 {[%clk 0:00:12]} 35... Rd8 {[%clk 0:00:06.2]} 36. Rcd1 {[%clk
0:00:11.4]} 36... Bg4 {[%clk 0:00:04.6]} 37. Rd4 {[%clk 0:00:10.3]} 37... Bf3
{[%clk 0:00:02.7]} 38. Rf1 {[%clk 0:00:08.4]} 38... Bxg2 {[%clk 0:00:02.7]} 39.
Qxg2 {[%clk 0:00:08.8]} 39... Re8 {[%clk 0:00:02.2]} 40. Rg4 {[%clk 0:00:07]}
40... Ne3 {[%clk 0:00:02.5]} 41. Qf3 {[%clk 0:00:04.3]} 41... Qxg4+ {[%clk
0:00:02.6]} 42. Qxg4 {[%clk 0:00:05.2]} 42... Nxg4 {[%clk 0:00:03.5]} 43. Rc1
{[%clk 0:00:04.7]} 43... Re5 {[%clk 0:00:02.7]} 44. Rxc6 {[%clk 0:00:04.2]}
44... Rxg5 {[%clk 0:00:03.3]} 45. Ra6 {[%clk 0:00:04]} 45... Ne5+ {[%clk
0:00:03.4]} 46. Kf2 {[%clk 0:00:04.9]} 46... Rf5+ {[%clk 0:00:03.8]} 47. Ke3
{[%clk 0:00:04]} 47... Rf3+ {[%clk 0:00:03.1]} 48. Ke4 {[%clk 0:00:04.1]} 48...
f6 {[%clk 0:00:03.7]} 49. Rxa7 {[%clk 0:00:04]} 49... g5 {[%clk 0:00:04.1]} 0-1

[Event "*** Titled Tuesday Blitz"]
[Site "Chess.com"]
[Date "2021.02.02"]
[Round "5"]
[White "MarcoRiehle"]
[Black "ukchessbomber"]
[Result "1-0"]
[WhiteElo "2697"]
[BlackElo "2394"]
[TimeControl "180+1"]
[EndTime "10:59:40 PST"]
[Termination "MarcoRiehle won by checkmate"]

1. e4 {[%clk 0:03:00.9]} 1... e5 {[%clk 0:02:05.6]} 2. Nf3 {[%clk 0:03:00.5]}
2... Nc6 {[%clk 0:02:06]} 3. d4 {[%clk 0:02:59.7]} 3... exd4 {[%clk 0:02:06.9]}
4. Bc4 {[%clk 0:02:59.7]} 4... Nf6 {[%clk 0:02:07.8]} 5. O-O {[%clk 0:02:59.2]}
5... Nxe4 {[%clk 0:02:07.6]} 6. Nc3 {[%clk 0:02:58.8]} 6... d5 {[%clk
0:02:08.1]} 7. Bxd5 {[%clk 0:02:58.2]} 7... Nxc3 {[%clk 0:02:02.8]} 8. Bxc6+
{[%clk 0:02:56.8]} 8... bxc6 {[%clk 0:02:03.7]} 9. bxc3 {[%clk 0:02:55.4]} 9...
dxc3 {[%clk 0:02:01.3]} 10. Qe1+ {[%clk 0:02:55.4]} 10... Be7 {[%clk 0:01:58.5]}
11. Ba3 {[%clk 0:02:55.1]} 11... Be6 {[%clk 0:01:57.1]} 12. Rd1 {[%clk
0:02:51.4]} 12... Qxd1 {[%clk 0:01:50.1]} 13. Qxd1 {[%clk 0:02:48.4]} 13... Bxa3
{[%clk 0:01:50.4]} 14. Ng5 {[%clk 0:02:42.6]} 14... O-O {[%clk 0:01:23.1]} 15.
Qd3 {[%clk 0:02:41.5]} 15... g6 {[%clk 0:01:22.5]} 16. Nxe6 {[%clk 0:02:40.6]}
16... fxe6 {[%clk 0:01:23.1]} 17. Qxc3 {[%clk 0:02:41]} 17... Bd6 {[%clk
0:01:23.5]} 18. Qxc6 {[%clk 0:02:38.9]} 18... Rad8 {[%clk 0:01:19.9]} 19. g3
{[%clk 0:02:36.1]} 19... Rf5 {[%clk 0:01:19.3]} 20. Rd1 {[%clk 0:02:28.7]} 20...
Rdf8 {[%clk 0:01:17.1]} 21. Rd2 {[%clk 0:02:22.1]} 21... Kh8 {[%clk 0:01:12.2]}
22. Qc3+ {[%clk 0:02:19.3]} 22... Be5 {[%clk 0:01:10.8]} 23. Qe3 {[%clk
0:02:17.3]} 23... Bd6 {[%clk 0:00:54.9]} 24. Kg2 {[%clk 0:02:05]} 24... Bc5
{[%clk 0:00:49.1]} 25. Qc3+ {[%clk 0:02:02.3]} 25... Kg8 {[%clk 0:00:48.8]} 26.
f4 {[%clk 0:02:01.2]} 26... Bd6 {[%clk 0:00:47.3]} 27. Qc4 {[%clk 0:01:53.4]}
27... Kf7 {[%clk 0:00:45.6]} 28. Re2 {[%clk 0:01:51.9]} 28... Re8 {[%clk
0:00:44.5]} 29. Qd4 {[%clk 0:01:45.5]} 29... Rc5 {[%clk 0:00:39.2]} 30. c4
{[%clk 0:01:42.5]} 30... Rb8 {[%clk 0:00:37.9]} 31. Qe4 {[%clk 0:01:36.4]} 31...
Re8 {[%clk 0:00:38]} 32. h4 {[%clk 0:01:34.4]} 32... a5 {[%clk 0:00:38.2]} 33.
Rb2 {[%clk 0:01:29.8]} 33... h5 {[%clk 0:00:36.4]} 34. a4 {[%clk 0:01:24]} 34...
Rf5 {[%clk 0:00:28.2]} 35. Rb5 {[%clk 0:01:21.5]} 35... Rxb5 {[%clk 0:00:27]}
36. cxb5 {[%clk 0:01:22.4]} 36... Bb4 {[%clk 0:00:27]} 37. g4 {[%clk 0:01:16]}
37... hxg4 {[%clk 0:00:26.3]} 38. h5 {[%clk 0:01:16.4]} 38... gxh5 {[%clk
0:00:21.6]} 39. Qh7+ {[%clk 0:01:17.3]} 39... Kf6 {[%clk 0:00:21.7]} 40. Qxc7
{[%clk 0:01:16]} 40... e5 {[%clk 0:00:15.7]} 41. b6 {[%clk 0:01:15.8]} 41... Ke6
{[%clk 0:00:12.4]} 42. Qxe5+ {[%clk 0:01:10.3]} 42... Kd7 {[%clk 0:00:12.6]} 43.
Qd5+ {[%clk 0:01:10.7]} 43... Ke7 {[%clk 0:00:10]} 44. b7 {[%clk 0:01:09.2]}
44... Bd6 {[%clk 0:00:10.2]} 45. Qxh5 {[%clk 0:01:08.1]} 45... Rb8 {[%clk
0:00:08.1]} 46. Qxg4 {[%clk 0:01:07.9]} 46... Kd8 {[%clk 0:00:06.6]} 47. Qg7
{[%clk 0:01:05.7]} 47... Be7 {[%clk 0:00:05.7]} 48. Qg8+ {[%clk 0:00:58.1]}
48... Kc7 {[%clk 0:00:06.1]} 49. Qf7 {[%clk 0:00:58.6]} 49... Kd7 {[%clk
0:00:05.6]} 50. Qd5+ {[%clk 0:00:58.5]} 50... Bd6 {[%clk 0:00:05.3]} 51. f5
{[%clk 0:00:57]} 51... Kc7 {[%clk 0:00:06.2]} 52. Qxa5+ {[%clk 0:00:52.4]} 52...
Kxb7 {[%clk 0:00:05.7]} 53. Qd5+ {[%clk 0:00:50.4]} 53... Kc7 {[%clk 0:00:06.1]}
54. a5 {[%clk 0:00:50.8]} 54... Re8 {[%clk 0:00:06.6]} 55. a6 {[%clk 0:00:48.4]}
55... Re2+ {[%clk 0:00:05.5]} 56. Kf3 {[%clk 0:00:47.8]} 56... Re5 {[%clk
0:00:05.9]} 57. Qf7+ {[%clk 0:00:44.5]} 57... Kc6 {[%clk 0:00:05.4]} 58. Qb7+
{[%clk 0:00:41.9]} 58... Kc5 {[%clk 0:00:05.8]} 59. a7 {[%clk 0:00:42.1]} 59...
Rxf5+ {[%clk 0:00:06]} 60. Ke2 {[%clk 0:00:42.3]} 60... Re5+ {[%clk 0:00:06]}
61. Kd3 {[%clk 0:00:42.4]} 61... Rd5+ {[%clk 0:00:06.5]} 62. Qxd5+ {[%clk
0:00:41.3]} 62... Kxd5 {[%clk 0:00:07.4]} 63. a8=Q+ {[%clk 0:00:42.2]} 63... Ke5
{[%clk 0:00:07.7]} 64. Qe4+ {[%clk 0:00:41.9]} 64... Kf6 {[%clk 0:00:07.9]} 65.
Kc4 {[%clk 0:00:42.4]} 65... Be5 {[%clk 0:00:08.3]} 66. Kd5 {[%clk 0:00:43.3]}
66... Bc7 {[%clk 0:00:09.2]} 67. Qe6+ {[%clk 0:00:43.8]} 67... Kg5 {[%clk
0:00:09.9]} 68. Ke4 {[%clk 0:00:44.7]} 68... Bh2 {[%clk 0:00:08.7]} 69. Qf5+
{[%clk 0:00:45.6]} 69... Kh4 {[%clk 0:00:09.2]} 70. Qg6 {[%clk 0:00:45.3]} 70...
Bg3 {[%clk 0:00:08.6]} 71. Kf3 {[%clk 0:00:46.2]} 71... Kh3 {[%clk 0:00:08.4]}
72. Qg4+ {[%clk 0:00:47.1]} 72... Kh2 {[%clk 0:00:07.5]} 73. Qxg3+ {[%clk
0:00:48]} 73... Kh1 {[%clk 0:00:08.4]} 74. Qg2# {[%clk 0:00:48.9]} 1-0

[Event "*** Titled Tuesday Blitz"]
[Site "Chess.com"]
[Date "2021.02.02"]
[Round "5"]
[White "Firstov"]
[Black "1977Ivan"]
[Result "1-0"]
[WhiteElo "2507"]
[BlackElo "2703"]
[TimeControl "180+1"]
[EndTime "10:59:41 PST"]
[Termination "Firstov won by resignation"]

1. b3 {[%clk 0:02:56.1]} 1... e5 {[%clk 0:02:56.1]} 2. Bb2 {[%clk 0:02:57]} 2...
Nc6 {[%clk 0:02:56.5]} 3. e3 {[%clk 0:02:56.7]} 3... d5 {[%clk 0:02:52.8]} 4.
Bb5 {[%clk 0:02:56.4]} 4... Ne7 {[%clk 0:02:53.3]} 5. Bxe5 {[%clk 0:02:49.8]}
5... a6 {[%clk 0:02:53.8]} 6. Bxc6+ {[%clk 0:02:49.5]} 6... Nxc6 {[%clk
0:02:54.7]} 7. Bb2 {[%clk 0:02:49.4]} 7... Qg5 {[%clk 0:02:46.5]} 8. Qf3 {[%clk
0:02:24.4]} 8... Bg4 {[%clk 0:02:44.8]} 9. Qg3 {[%clk 0:02:23.7]} 9... Bd6
{[%clk 0:02:45.3]} 10. f4 {[%clk 0:02:23.7]} 10... Qg6 {[%clk 0:02:41.5]} 11. d3
{[%clk 0:02:13]} 11... Nb4 {[%clk 0:02:18.6]} 12. Kd2 {[%clk 0:01:57.8]} 12...
O-O-O {[%clk 0:02:08]} 13. h3 {[%clk 0:01:57]} 13... Bd7 {[%clk 0:02:03.7]} 14.
Qxg6 {[%clk 0:01:56.2]} 14... hxg6 {[%clk 0:02:03.9]} 15. Bxg7 {[%clk
0:01:53.1]} 15... Rhg8 {[%clk 0:01:47.2]} 16. Bf6 {[%clk 0:01:52.6]} 16... d4
{[%clk 0:01:46.7]} 17. Bxd4 {[%clk 0:01:45.9]} 17... g5 {[%clk 0:01:46.3]} 18.
fxg5 {[%clk 0:01:29]} 18... Rde8 {[%clk 0:01:40.1]} 19. Nf3 {[%clk 0:01:25.8]}
19... Bc6 {[%clk 0:01:27.1]} 20. e4 {[%clk 0:01:21.1]} 20... Bf4+ {[%clk
0:01:26.5]} 21. Kc3 {[%clk 0:01:19.8]} 21... a5 {[%clk 0:01:26.2]} 22. a3 {[%clk
0:01:18]} 22... Na6 {[%clk 0:01:25.5]} 23. Nbd2 {[%clk 0:01:09.4]} 23... b5
{[%clk 0:01:22.1]} 24. b4 {[%clk 0:01:02.6]} 24... Bd7 {[%clk 0:01:16.9]} 25.
Nb3 {[%clk 0:00:54.4]} 25... a4 {[%clk 0:01:11.2]} 26. Nc5 {[%clk 0:00:49.5]}
26... Nxc5 {[%clk 0:01:11.1]} 27. bxc5 {[%clk 0:00:49.1]} 27... c6 {[%clk
0:00:50.6]} 28. Bf6 {[%clk 0:00:47.6]} 28... Be3 {[%clk 0:00:39.8]} 29. Kb4
{[%clk 0:00:32]} 29... Rg6 {[%clk 0:00:25.3]} 30. Rae1 {[%clk 0:00:31.3]} 30...
Bf4 {[%clk 0:00:24.2]} 31. Rhf1 {[%clk 0:00:30.4]} 31... Bg3 {[%clk 0:00:22.7]}
32. Re2 {[%clk 0:00:30.1]} 32... Bc7 {[%clk 0:00:19.3]} 33. Kc3 {[%clk
0:00:27.9]} 33... Be6 {[%clk 0:00:17.7]} 34. Nh4 {[%clk 0:00:27]} 34... Rgg8
{[%clk 0:00:17.2]} 35. Nf5 {[%clk 0:00:26.7]} 35... Kd7 {[%clk 0:00:17.4]} 36.
Nd4 {[%clk 0:00:24]} 36... Rg6 {[%clk 0:00:16.1]} 37. Nxe6 {[%clk 0:00:23.7]}
37... Kxe6 {[%clk 0:00:16.7]} 38. Ref2 {[%clk 0:00:22.5]} 38... Reg8 {[%clk
0:00:16.5]} 39. h4 {[%clk 0:00:22.4]} 39... Bg3 {[%clk 0:00:10.6]} 40. Rf4
{[%clk 0:00:22.1]} 40... Bxf4 {[%clk 0:00:10.2]} 41. Rxf4 {[%clk 0:00:23]} 41...
Kd7 {[%clk 0:00:03.6]} 42. g4 {[%clk 0:00:23]} 42... Ke6 {[%clk 0:00:03.2]} 43.
h5 {[%clk 0:00:22.5]} 43... Rxg5 {[%clk 0:00:03.1]} 44. Bxg5 {[%clk 0:00:22.6]}
44... Rxg5 {[%clk 0:00:04]} 45. Kb4 {[%clk 0:00:22.3]} 45... f6 {[%clk
0:00:03.9]} 46. d4 {[%clk 0:00:22]} 46... Rg8 {[%clk 0:00:03.7]} 47. Kc3 {[%clk
0:00:17.8]} 47... Rg5 {[%clk 0:00:02.1]} 48. Kd3 {[%clk 0:00:17.7]} 48... Rg8
{[%clk 0:00:02.7]} 49. c3 {[%clk 0:00:17.2]} 49... Rg5 {[%clk 0:00:03.5]} 50.
Ke3 {[%clk 0:00:17.3]} 50... Rg8 {[%clk 0:00:04]} 51. Kf3 {[%clk 0:00:17.3]}
51... Rg5 {[%clk 0:00:04.3]} 52. Rf5 {[%clk 0:00:16.5]} 52... Rg8 {[%clk
0:00:05.2]} 53. e5 {[%clk 0:00:16.4]} 53... fxe5 {[%clk 0:00:04.5]} 54. Rxe5+
{[%clk 0:00:16.4]} 54... Kf6 {[%clk 0:00:05.4]} 55. Kf4 {[%clk 0:00:16.6]} 55...
Rf8 {[%clk 0:00:05]} 56. g5+ {[%clk 0:00:15.7]} 56... Kg7+ {[%clk 0:00:05.9]}
57. Kg4 {[%clk 0:00:15.6]} 57... Re8 {[%clk 0:00:06.8]} 58. Rxe8 {[%clk
0:00:15.4]} 1-0

[Event "*** Titled Tuesday Blitz"]
[Site "Chess.com"]
[Date "2021.02.02"]
[Round "5"]
[White "TokChess"]
[Black "AlexeiShirov"]
[Result "0-1"]
[WhiteElo "2481"]
[BlackElo "2835"]
[TimeControl "180+1"]
[EndTime "10:59:44 PST"]
[Termination "AlexeiShirov won on time"]

1. Nf3 {[%clk 0:03:00.9]} 1... d5 {[%clk 0:02:59.4]} 2. g3 {[%clk 0:03:00.8]}
2... g6 {[%clk 0:02:59.6]} 3. Bg2 {[%clk 0:03:00.8]} 3... Bg7 {[%clk 0:02:59.4]}
4. d4 {[%clk 0:03:01.4]} 4... Nf6 {[%clk 0:02:58.4]} 5. O-O {[%clk 0:03:01.5]}
5... O-O {[%clk 0:02:55.9]} 6. Nbd2 {[%clk 0:03:02.4]} 6... c5 {[%clk
0:02:49.6]} 7. dxc5 {[%clk 0:02:57.2]} 7... Na6 {[%clk 0:02:48.7]} 8. Nb3 {[%clk
0:02:47.9]} 8... Ne4 {[%clk 0:02:48]} 9. Ng5 {[%clk 0:02:44.3]} 9... Bf5 {[%clk
0:02:32.2]} 10. Nxe4 {[%clk 0:02:34.3]} 10... Bxe4 {[%clk 0:02:31.3]} 11. Bxe4
{[%clk 0:02:22.2]} 11... dxe4 {[%clk 0:02:30]} 12. Qxd8 {[%clk 0:02:23.1]} 12...
Raxd8 {[%clk 0:02:27.2]} 13. c3 {[%clk 0:02:24]} 13... e5 {[%clk 0:02:26.1]} 14.
Be3 {[%clk 0:02:20.1]} 14... f5 {[%clk 0:02:22.8]} 15. Rfd1 {[%clk 0:02:18.3]}
15... Nc7 {[%clk 0:02:17.4]} 16. Bg5 {[%clk 0:02:04.1]} 16... Rd5 {[%clk
0:02:01.8]} 17. Rxd5 {[%clk 0:01:55.6]} 17... Nxd5 {[%clk 0:02:00.9]} 18. Rd1
{[%clk 0:01:56.5]} 18... Nf6 {[%clk 0:02:00.6]} 19. Rd6 {[%clk 0:01:42.9]} 19...
h6 {[%clk 0:01:30.4]} 20. Bxf6 {[%clk 0:01:39]} 20... Rxf6 {[%clk 0:01:29.5]}
21. Rxf6 {[%clk 0:01:36.1]} 21... Bxf6 {[%clk 0:01:28.9]} 22. Na5 {[%clk
0:01:37]} 22... b6 {[%clk 0:01:27.7]} 23. cxb6 {[%clk 0:01:32.4]} 23... axb6
{[%clk 0:01:26.5]} 24. Nc4 {[%clk 0:01:32.6]} 24... Bd8 {[%clk 0:01:19.7]} 25.
Nxe5 {[%clk 0:01:31.8]} 25... Kg7 {[%clk 0:01:19.9]} 26. f3 {[%clk 0:01:23.4]}
26... Kf6 {[%clk 0:01:19]} 27. Nc6 {[%clk 0:01:18.4]} 27... Bc7 {[%clk
0:01:18.7]} 28. Kf2 {[%clk 0:01:15.3]} 28... Ke6 {[%clk 0:01:17.1]} 29. Ke3
{[%clk 0:01:06.5]} 29... exf3 {[%clk 0:01:15.8]} 30. exf3 {[%clk 0:01:06.2]}
30... Kd5 {[%clk 0:01:14.8]} 31. Nb4+ {[%clk 0:01:03.2]} 31... Kc4 {[%clk
0:01:14.1]} 32. Nd3 {[%clk 0:01:02.8]} 32... Bd6 {[%clk 0:01:12.1]} 33. Nf4
{[%clk 0:01:00.8]} 33... g5 {[%clk 0:01:11.5]} 34. Ne6 {[%clk 0:00:58.9]} 34...
Kd5 {[%clk 0:01:10.2]} 35. Nd4 {[%clk 0:00:57.6]} 35... f4+ {[%clk 0:01:08.4]}
36. Kf2 {[%clk 0:00:51.8]} 36... fxg3+ {[%clk 0:01:06.5]} 37. hxg3 {[%clk
0:00:51.5]} 37... h5 {[%clk 0:01:06.5]} 38. Nf5 {[%clk 0:00:45.6]} 38... Bc5+
{[%clk 0:01:06]} 39. Kg2 {[%clk 0:00:35.7]} 39... Kc4 {[%clk 0:01:05.1]} 40. Ng7
{[%clk 0:00:30.9]} 40... Be3 {[%clk 0:00:54.8]} 41. Nxh5 {[%clk 0:00:29]} 41...
Bc1 {[%clk 0:00:54.3]} 42. b3+ {[%clk 0:00:23.9]} 42... Kxc3 {[%clk 0:00:53.6]}
43. f4 {[%clk 0:00:24.8]} 43... gxf4 {[%clk 0:00:50.7]} 44. gxf4 {[%clk
0:00:25.7]} 44... Kb2 {[%clk 0:00:50.2]} 45. Kf3 {[%clk 0:00:26.1]} 45... Kxa2
{[%clk 0:00:49.7]} 46. Ke4 {[%clk 0:00:26.2]} 46... Kxb3 {[%clk 0:00:49.1]} 47.
Kd5 {[%clk 0:00:22]} 47... b5 {[%clk 0:00:48.9]} 48. f5 {[%clk 0:00:22.4]} 48...
b4 {[%clk 0:00:47.7]} 49. f6 {[%clk 0:00:22.8]} 49... Ka2 {[%clk 0:00:46]} 50.
Ng7 {[%clk 0:00:19.9]} 50... b3 {[%clk 0:00:44.4]} 51. Nf5 {[%clk 0:00:10.7]}
51... b2 {[%clk 0:00:22.6]} 52. f7 {[%clk 0:00:09.6]} 52... b1=Q {[%clk
0:00:22.4]} 53. f8=Q {[%clk 0:00:09.7]} 53... Qb3+ {[%clk 0:00:22.2]} 54. Ke4
{[%clk 0:00:08]} 54... Qc2+ {[%clk 0:00:21]} 55. Kd5 {[%clk 0:00:06.7]} 55...
Bb2 {[%clk 0:00:19.6]} 56. Qa8+ {[%clk 0:00:05.1]} 56... Kb1 {[%clk 0:00:19.4]}
57. Nd6 {[%clk 0:00:04.2]} 57... Qd3+ {[%clk 0:00:18.7]} 58. Ke6 {[%clk
0:00:03.7]} 58... Qe2+ {[%clk 0:00:18.2]} 59. Kd7 {[%clk 0:00:03.7]} 59... Qg4+
{[%clk 0:00:18.3]} 0-1